fUST/lending_fUST_20241019
["ID","MTS","AMOUNT","RATE_DAILY","PERIOD"]
[340480549,1729291860427,-514.85,0.00015342,2]
[340480550,1729291860437,-669.01,0.00015342,2]
[340480551,1729291860447,-673.18,0.00015342,2]
[340480552,1729291860458,-542.97,0.00015342,2]
[340480553,1729291860468,-539.5,0.00015342,2]
[340480554,1729291860479,-936.78,0.00015342,2]
[340480555,1729291860489,-726.96,0.00015342,2]
[340480556,1729291860499,-318.71466429,0.00015342,2]
[340480557,1729291860510,-971.17,0.00015342,2]
[340480558,1729291860520,-5586.53,0.00015342,2]
[340480559,1729291860530,-1862.55,0.00015342,2]
[340480560,1729291860539,-550.21,0.00015342,2]
[340480561,1729291860551,-1290.46,0.00015342,2]
[340480562,1729291860562,-742.47,0.00015342,2]
[340480563,1729291860571,-1419.77,0.00015342,2]
[340480564,1729291860581,-1014.6,0.00015342,2]
[340480565,1729291860591,-505.28,0.00015342,2]
[340480566,1729291860603,-500.0,0.00015342,2]
[340480567,1729291860614,-500.0,0.00015342,2]
[340480568,1729291860625,-768.91,0.00015342,2]
[340480569,1729291860635,-500.0,0.00015342,2]
[340480570,1729291860647,-556.94,0.00015342,2]
[340480571,1729291860658,-1030.46,0.00015342,2]
[340480572,1729291860668,-500.0,0.00015342,2]
[340480573,1729291860679,-1160.09,0.00015342,2]
[340480574,1729291860690,-994.82,0.00015342,2]
[340480575,1729291860701,-500.0,0.00015342,2]
[340480576,1729291860710,-515.12,0.00015342,2]
[340480577,1729291860721,-883.44,0.00015342,2]
[340480578,1729291860733,-1048.82,0.00015342,2]
[340480579,1729291860743,-43835.78,0.00015342,2]
[340480580,1729291860754,-739.77,0.00015342,2]
[340480581,1729291860766,-1185.43,0.00015342,2]
[340480582,1729291860778,-500.0,0.00015342,2]
[340480583,1729291860790,-5542.64,0.00015342,2]
[340480584,1729291860800,-535.73,0.00015342,2]
[340480585,1729291860811,-500.0,0.00015342,2]
[340480586,1729291860821,-681.76,0.00015342,2]
[340480587,1729291860834,-175.954252,0.00015377,2]
[340480588,1729291860846,-518.46,0.00015616,2]
[340480589,1729291860857,-728.58,0.00015616,2]
[340480590,1729291860867,-671.75,0.00015616,2]
[340480591,1729291860880,-1056.77,0.00015616,2]
[340480592,1729291860891,-706.39,0.00015616,2]
[340480593,1729291860901,-286.08890199,0.00015616,2]
[340480594,1729291860910,-629.46,0.00015616,2]
[340480595,1729291860920,-607.53,0.00015616,2]
[340480596,1729291860931,-500.0,0.00015616,2]
[340480597,1729291860943,-649.49,0.00015616,2]
[340480598,1729291860955,-674.46,0.00015616,2]
[340480599,1729291860964,-500.0,0.00015616,2]
[340480600,1729291860974,-829.82,0.00015616,2]
[340480601,1729291860984,-663.46,0.00015616,2]
[340480602,1729291860994,-614.35,0.00015616,2]
[340480603,1729291861005,-500.0,0.00015616,2]
[340480604,1729291861015,-580.4,0.00015616,2]
[340480605,1729291861026,-949.53,0.00015616,2]
[340480606,1729291861036,-701.62,0.00015616,2]
[340480607,1729291861047,-833.17,0.00015616,2]
[340480608,1729291861057,-633.06,0.00015616,2]
[340480609,1729291861067,-1000.0,0.00015616,2]
[340480610,1729291861077,-906.63,0.00015616,2]
[340480611,1729291861087,-673.81,0.00015616,2]
[340480612,1729291861097,-748.02,0.00015616,2]
[340480613,1729291861107,-627.0,0.00015616,2]
[340480614,1729291861117,-518.61,0.00015616,2]
[340480615,1729291861127,-940.92,0.00015616,2]
[340480616,1729291861137,-500.0,0.00015616,2]
[340480617,1729291861148,-500.0,0.00015616,2]
[340480618,1729291861161,-1590.53,0.00015616,2]
[340480619,1729291861170,-545.62,0.00015616,2]
[340480620,1729291861180,-655.37,0.00015616,2]
[340480621,1729291861189,-1005.93,0.00015616,2]
[340480622,1729291861199,-500.0,0.00015616,2]
[340480623,1729291861209,-500.0,0.00015616,2]
[340480624,1729291861220,-500.0,0.00015616,2]
[340480625,1729291861230,-560.93,0.00015616,2]
[340480626,1729291861240,-1345.81,0.00015616,2]
[340480627,1729291861250,-808.47,0.00015616,2]
[340480628,1729291861262,-500.0,0.00015616,2]
[340480629,1729291861273,-500.0,0.00015616,2]
[340480630,1729291861284,-958.47,0.00015616,2]
[340480631,1729291861295,-500.0,0.00015616,2]
[340480632,1729291861305,-500.0,0.00015616,2]
[340480633,1729291861316,-725.08,0.00015616,2]
[340480634,1729291861327,-606.85,0.00015616,2]
[340480635,1729291861338,-995.34,0.00015616,2]
[340480636,1729291861350,-500.0,0.00015616,2]
[340480637,1729291861362,-1927.12,0.00015616,2]
[340480638,1729291861373,-500.0,0.00015616,2]
[340480639,1729291861384,-500.0,0.00015616,2]
[340480640,1729291861397,-684.7,0.00015616,2]
[340480641,1729291861409,-633.19,0.00015616,2]
[340480642,1729291861420,-659.75,0.00015616,2]
[340480643,1729291861432,-607.03,0.00015616,2]
[340480644,1729291861441,-500.0,0.00015616,2]
[340480645,1729291861454,-500.0,0.00015616,2]
[340480646,1729291861465,-582.52,0.00015616,2]
[340480647,1729291861477,-500.0,0.00015616,2]
[340480648,1729291861487,-500.0,0.00015616,2]
[340480649,1729291861497,-500.0,0.00015616,2]
[340480650,1729291861509,-981.61,0.00015616,2]
[340480651,1729291861521,-500.0,0.00015616,2]
[340480652,1729291861530,-1829.57,0.00015616,2]
[340480653,1729291861542,-1010.37,0.00015616,2]
[340480654,1729291861554,-794.19,0.00015616,2]
[340480655,1729291861566,-587.2367656,0.00015616,2]
[340480656,1729291861577,-962.66,0.00015616,2]
[340480657,1729291861587,-760.7,0.00015616,2]
[340480658,1729291861597,-2750.42,0.00015616,2]
[340480659,1729291861610,-744.46,0.00015616,2]
[340480660,1729291861620,-500.0,0.00015616,2]
[340480661,1729291861630,-500.0,0.00015616,2]
[340480662,1729291861640,-670.38,0.00015616,2]
[340480663,1729291861650,-500.0,0.00015616,2]
[340480664,1729291861660,-874.82,0.00015616,2]
[340480665,1729291861670,-500.0,0.00015616,2]
[340480666,1729291861680,-500.0,0.00015616,2]
[340480667,1729291861690,-500.0,0.00015616,2]
[340480668,1729291861700,-500.0,0.00015616,2]
[340480669,1729291861711,-956.55,0.00015616,2]
[340480670,1729291861721,-639.04,0.00015616,2]
[340480671,1729291861730,-500.0,0.00015616,2]
[340480672,1729291861740,-831.11,0.00015616,2]
[340480673,1729291861750,-500.0,0.00015616,2]
[340480674,1729291861759,-506.71,0.00015616,2]
[340480675,1729291861769,-440.66880198,0.00015616,2]
[340480676,1729291861779,-1189.28,0.00015616,2]
[340480677,1729291861788,-544.67,0.00015616,2]
[340480678,1729291861798,-572.11,0.00015616,2]
[340480679,1729291861809,-861.55,0.00015616,2]
[340480680,1729291861819,-671.0,0.00015616,2]
[340480681,1729291861829,-500.0,0.00015616,2]
[340480682,1729291861839,-500.0,0.00015616,2]
[340480683,1729291861850,-500.0,0.00015616,2]
[340480684,1729291861860,-500.0,0.00015616,2]
[340480685,1729291861870,-1034.67,0.00015616,2]
[340480686,1729291861880,-347.49258249,0.00015616,2]
[340480687,1729291861890,-1730.12,0.00015616,2]
[340480688,1729291861900,-500.0,0.00015616,2]
[340480689,1729291861911,-500.0,0.00015616,2]
[340480690,1729291861924,-600.6099529,0.00015616,2]
[340480691,1729291861934,-500.0,0.00015616,2]
[340480692,1729291861944,-1845.83,0.00015616,2]
[340480693,1729291861954,-1306.8,0.00015616,2]
[340480694,1729291861965,-680.84,0.00015616,2]
[340480695,1729291861975,-667.45,0.00015616,2]
[340480696,1729291861986,-856.47,0.00015616,2]
[340480697,1729291861996,-500.0,0.00015616,2]
[340480698,1729291862006,-853.95,0.00015616,2]
[340480699,1729291862016,-1778.08,0.00015616,2]
[340480700,1729291862026,-616.44,0.00015616,2]
[340480701,1729291862036,-2120.38,0.00015616,2]
[340480702,1729291862045,-500.0,0.00015616,2]
[340480703,1729291862055,-505.13,0.00015616,2]
[340480704,1729291862065,-638.22,0.00015616,2]
[340480705,1729291862074,-441.21157569,0.00015616,2]
[340480706,1729291862084,-500.0,0.00015616,2]
[340480707,1729291862094,-552.77,0.00015616,2]
[340480708,1729291862104,-1243.09,0.00015616,2]
[340480709,1729291862114,-500.0,0.00015616,2]
[340480710,1729291862125,-1877.71,0.00015616,2]
[340480711,1729291862135,-904.73,0.00015616,2]
[340480712,1729291862146,-1020.94,0.00015616,2]
[340480713,1729291862156,-853.41,0.00015616,2]
[340480714,1729291862166,-512.28,0.00015616,2]
[340480715,1729291862176,-477.84755306,0.00015616,2]
[340480716,1729291862187,-500.0,0.00015616,2]
[340480717,1729291862197,-500.0,0.00015616,2]
[340480718,1729291862208,-806.34,0.00015616,2]
[340480719,1729291862219,-500.0,0.00015616,2]
[340480720,1729291862230,-1095.06,0.00015616,2]
[340480721,1729291862241,-1119.35,0.00015616,2]
[340480722,1729291862251,-747.11,0.00015616,2]
[340480723,1729291862261,-668.58,0.00015616,2]
[340480724,1729291862271,-1416.54,0.00015616,2]
[340480725,1729291862281,-846.55,0.00015616,2]
[340480726,1729291862290,-500.0,0.00015616,2]
[340480727,1729291862300,-1243.22,0.00015616,2]
[340480728,1729291862310,-500.0,0.00015616,2]
[340480729,1729291862321,-514.85,0.00015616,2]
[340480730,1729291862331,-669.01,0.00015616,2]
[340480731,1729291862341,-673.18,0.00015616,2]
[340480732,1729291862352,-542.97,0.00015616,2]
[340480733,1729291862362,-539.5,0.00015616,2]
[340480734,1729291862372,-936.78,0.00015616,2]
[340480735,1729291862382,-726.96,0.00015616,2]
[340480736,1729291862393,-971.17,0.00015616,2]
[340480737,1729291862405,-5586.53,0.00015616,2]
[340480738,1729291862417,-1862.55,0.00015616,2]
[340480739,1729291862427,-550.21,0.00015616,2]
[340480740,1729291862437,-1290.46,0.00015616,2]
[340480741,1729291862448,-742.47,0.00015616,2]
[340480742,1729291862458,-1419.77,0.00015616,2]
[340480743,1729291862469,-1014.6,0.00015616,2]
[340480744,1729291862479,-505.28,0.00015616,2]
[340480745,1729291862488,-500.0,0.00015616,2]
[340480746,1729291862498,-500.0,0.00015616,2]
[340480747,1729291862508,-768.91,0.00015616,2]
[340480748,1729291862518,-500.0,0.00015616,2]
[340480749,1729291862528,-556.94,0.00015616,2]
[340480750,1729291862539,-1030.46,0.00015616,2]
[340480751,1729291862549,-500.0,0.00015616,2]
[340480752,1729291862558,-1160.09,0.00015616,2]
[340480753,1729291862568,-994.82,0.00015616,2]
[340480754,1729291862578,-436.86948269,0.00015616,2]
[340480755,1729291862589,-515.12,0.00015616,2]
[340480756,1729291862600,-883.44,0.00015616,2]
[340480757,1729291862612,-1048.82,0.00015616,2]
[340480758,1729291862622,-43835.78,0.00015616,2]
[340480759,1729291862632,-739.77,0.00015616,2]
[340480760,1729291862642,-1185.43,0.00015616,2]
[340480761,1729291862654,-500.0,0.00015616,2]
[340480762,1729291862664,-5542.64,0.00015616,2]
[340480763,1729291862674,-535.73,0.00015616,2]
[340480764,1729291862684,-500.0,0.00015616,2]
[340480765,1729291862694,-681.76,0.00015616,2]
[340480766,1729291862704,-518.46,0.0001589,2]
[340480767,1729291862714,-728.58,0.0001589,2]
[340480768,1729291862725,-671.75,0.0001589,2]
[340480769,1729291862735,-1056.77,0.0001589,2]
[340480770,1729291862745,-706.39,0.0001589,2]
[340480771,1729291862756,-629.46,0.0001589,2]
[340480772,1729291862767,-607.53,0.0001589,2]
[340480773,1729291862777,-500.0,0.0001589,2]
[340480774,1729291862787,-649.49,0.0001589,2]
[340480775,1729291862797,-674.46,0.0001589,2]
[340480776,1729291862806,-500.0,0.0001589,2]
[340480777,1729291862815,-829.82,0.0001589,2]
[340480778,1729291862825,-663.46,0.0001589,2]
[340480779,1729291862834,-614.35,0.0001589,2]
[340480780,1729291862844,-500.0,0.0001589,2]
[340480781,1729291862853,-580.4,0.0001589,2]
[340480782,1729291862863,-949.53,0.0001589,2]
[340480783,1729291862872,-701.62,0.0001589,2]
[340480784,1729291862883,-833.17,0.0001589,2]
[340480785,1729291862893,-633.06,0.0001589,2]
[340480786,1729291862904,-1000.0,0.0001589,2]
[340480787,1729291862913,-906.63,0.0001589,2]
[340480788,1729291862924,-673.81,0.0001589,2]
[340480789,1729291862934,-748.02,0.0001589,2]
[340480790,1729291862944,-627.0,0.0001589,2]
[340480791,1729291862954,-518.61,0.0001589,2]
[340480792,1729291862964,-940.92,0.0001589,2]
[340480793,1729291862974,-500.0,0.0001589,2]
[340480794,1729291862984,-500.0,0.0001589,2]
[340480795,1729291862993,-1590.53,0.0001589,2]
[340480796,1729291863003,-545.62,0.0001589,2]
[340480797,1729291863015,-655.37,0.0001589,2]
[340480798,1729291863192,-1005.93,0.0001589,2]
[340480799,1729291863202,-500.0,0.0001589,2]
[340480800,1729291863213,-500.0,0.0001589,2]
[340480801,1729291863223,-500.0,0.0001589,2]
[340480802,1729291863233,-560.93,0.0001589,2]
[340480803,1729291863243,-1345.81,0.0001589,2]
[340480804,1729291863253,-808.47,0.0001589,2]
[340480805,1729291863263,-500.0,0.0001589,2]
[340480806,1729291863273,-500.0,0.0001589,2]
[340480807,1729291863283,-958.47,0.0001589,2]
[340480808,1729291863293,-500.0,0.0001589,2]
[340480809,1729291863303,-500.0,0.0001589,2]
[340480810,1729291863313,-725.08,0.0001589,2]
[340480811,1729291863323,-606.85,0.0001589,2]
[340480812,1729291863334,-995.34,0.0001589,2]
[340480813,1729291863344,-500.0,0.0001589,2]
[340480814,1729291863354,-1927.12,0.0001589,2]
[340480815,1729291863365,-500.0,0.0001589,2]
[340480816,1729291863376,-631.82949804,0.0001589,2]
[340480817,1729291863388,-684.7,0.0001589,2]
[340480818,1729291863398,-633.19,0.0001589,2]
[340480819,1729291863410,-659.75,0.0001589,2]
[340480820,1729291863421,-607.03,0.0001589,2]
[340480821,1729291863431,-500.0,0.0001589,2]
[340480822,1729291863441,-500.0,0.0001589,2]
[340480823,1729291863451,-582.52,0.0001589,2]
[340480824,1729291863461,-500.0,0.0001589,2]
[340480825,1729291863472,-500.0,0.0001589,2]
[340480826,1729291863483,-500.0,0.0001589,2]
[340480827,1729291863493,-981.61,0.0001589,2]
[340480828,1729291863503,-500.0,0.0001589,2]
[340480829,1729291863514,-1829.57,0.0001589,2]
[340480830,1729291863524,-1010.37,0.0001589,2]
[340480831,1729291863533,-794.19,0.0001589,2]
[340480832,1729291863543,-962.66,0.0001589,2]
[340480833,1729291863552,-760.7,0.0001589,2]
[340480834,1729291863562,-2750.42,0.0001589,2]
[340480835,1729291863573,-744.46,0.0001589,2]
[340480836,1729291863583,-500.0,0.0001589,2]
[340480837,1729291863593,-500.0,0.0001589,2]
[340480838,1729291863605,-670.38,0.0001589,2]
[340480839,1729291863615,-500.0,0.0001589,2]
[340480840,1729291863626,-874.82,0.0001589,2]
[340480841,1729291863637,-500.0,0.0001589,2]
[340480842,1729291863647,-500.0,0.0001589,2]
[340480843,1729291863657,-500.0,0.0001589,2]
[340480844,1729291863668,-500.0,0.0001589,2]
[340480845,1729291863680,-956.55,0.0001589,2]
[340480846,1729291863690,-639.04,0.0001589,2]
[340480847,1729291863700,-500.0,0.0001589,2]
[340480848,1729291863710,-831.11,0.0001589,2]
[340480849,1729291863720,-500.0,0.0001589,2]
[340480850,1729291863730,-506.71,0.0001589,2]
[340480851,1729291863739,-1189.28,0.0001589,2]
[340480852,1729291863749,-544.67,0.0001589,2]
[340480853,1729291863761,-572.11,0.0001589,2]
[340480854,1729291863771,-861.55,0.0001589,2]
[340480855,1729291863781,-671.0,0.0001589,2]
[340480856,1729291863791,-500.0,0.0001589,2]
[340480857,1729291863801,-500.0,0.0001589,2]
[340480858,1729291863811,-500.0,0.0001589,2]
[340480859,1729291863821,-500.0,0.0001589,2]
[340480860,1729291863831,-1034.67,0.0001589,2]
[340480861,1729291863842,-1730.12,0.0001589,2]
[340480862,1729291863852,-500.0,0.0001589,2]
[340480863,1729291863862,-500.0,0.0001589,2]
[340480864,1729291863872,-500.0,0.0001589,2]
[340480865,1729291863883,-1845.83,0.0001589,2]
[340480866,1729291863893,-1306.8,0.0001589,2]
[340480867,1729291863904,-680.84,0.0001589,2]
[340480868,1729291863915,-667.45,0.0001589,2]
[340480869,1729291863926,-856.47,0.0001589,2]
[340480870,1729291863936,-500.0,0.0001589,2]
[340480871,1729291863947,-853.95,0.0001589,2]
[340480872,1729291863957,-1778.08,0.0001589,2]
[340480873,1729291863967,-616.44,0.0001589,2]
[340480874,1729291863977,-2120.38,0.0001589,2]
[340480875,1729291863987,-500.0,0.0001589,2]
[340480876,1729291863997,-505.13,0.0001589,2]
[340480877,1729291864008,-638.22,0.0001589,2]
[340480878,1729291864018,-500.0,0.0001589,2]
[340480879,1729291864029,-552.77,0.0001589,2]
[340480880,1729291864039,-1243.09,0.0001589,2]
[340480881,1729291864050,-500.0,0.0001589,2]
[340480882,1729291864060,-1877.71,0.0001589,2]
[340480883,1729291864070,-904.73,0.0001589,2]
[340480884,1729291864081,-1020.94,0.0001589,2]
[340480885,1729291864091,-853.41,0.0001589,2]
[340480886,1729291864101,-512.28,0.0001589,2]
[340480887,1729291864111,-500.0,0.0001589,2]
[340480888,1729291864121,-500.0,0.0001589,2]
[340480889,1729291864131,-806.34,0.0001589,2]
[340480890,1729291864142,-500.0,0.0001589,2]
[340480891,1729291864152,-1095.06,0.0001589,2]
[340480892,1729291864162,-1119.35,0.0001589,2]
[340480893,1729291864172,-747.11,0.0001589,2]
[340480894,1729291864183,-668.58,0.0001589,2]
[340480895,1729291864193,-1416.54,0.0001589,2]
[340480896,1729291864203,-846.55,0.0001589,2]
[340480897,1729291864213,-500.0,0.0001589,2]
[340480898,1729291864224,-1243.22,0.0001589,2]
[340480899,1729291864234,-500.0,0.0001589,2]
[340480900,1729291864244,-514.85,0.0001589,2]
[340480901,1729291864256,-669.01,0.0001589,2]
[340480902,1729291864266,-673.18,0.0001589,2]
[340480903,1729291864276,-542.97,0.0001589,2]
[340480904,1729291864287,-539.5,0.0001589,2]
[340480905,1729291864297,-936.78,0.0001589,2]
[340480906,1729291864307,-726.96,0.0001589,2]
[340480907,1729291864317,-971.17,0.0001589,2]
[340480908,1729291864326,-5586.53,0.0001589,2]
[340480909,1729291864336,-1862.55,0.0001589,2]
[340480910,1729291864347,-550.21,0.0001589,2]
[340480911,1729291864357,-1290.46,0.0001589,2]
[340480912,1729291864368,-742.47,0.0001589,2]
[340480913,1729291864379,-1419.77,0.0001589,2]
[340480914,1729291864390,-1014.6,0.0001589,2]
[340480915,1729291864400,-505.28,0.0001589,2]
[340480916,1729291864410,-500.0,0.0001589,2]
[340480917,1729291864420,-500.0,0.0001589,2]
[340480918,1729291864430,-768.91,0.0001589,2]
[340480919,1729291864441,-500.0,0.0001589,2]
[340480920,1729291864451,-556.94,0.0001589,2]
[340480921,1729291864461,-1030.46,0.0001589,2]
[340480922,1729291864471,-500.0,0.0001589,2]
[340480923,1729291864483,-1160.09,0.0001589,2]
[340480924,1729291864493,-994.82,0.0001589,2]
[340480925,1729291864505,-515.12,0.0001589,2]
[340480926,1729291864515,-883.44,0.0001589,2]
[340480927,1729291864525,-1048.82,0.0001589,2]
[340480928,1729291864536,-43835.78,0.0001589,2]
[340480929,1729291864546,-739.77,0.0001589,2]
[340480930,1729291864557,-1185.43,0.0001589,2]
[340480931,1729291864568,-500.0,0.0001589,2]
[340480932,1729291864578,-5542.64,0.0001589,2]
[340480933,1729291864588,-535.73,0.0001589,2]
[340480934,1729291864597,-500.0,0.0001589,2]
[340480935,1729291864610,-446.0810405,0.00016054,2]
[340480936,1729291864620,-518.46,0.00016164,2]
[340480937,1729291864631,-728.58,0.00016164,2]
[340480938,1729291864641,-671.75,0.00016164,2]
[340480939,1729291864653,-1056.77,0.00016164,2]
[340480940,1729291864663,-706.39,0.00016164,2]
[340480941,1729291864672,-629.46,0.00016164,2]
[340480942,1729291864683,-607.53,0.00016164,2]
[340480943,1729291864692,-500.0,0.00016164,2]
[340480944,1729291864702,-649.49,0.00016164,2]
[340480945,1729291864712,-674.46,0.00016164,2]
[340480946,1729291864721,-500.0,0.00016164,2]
[340480947,1729291864731,-829.82,0.00016164,2]
[340480948,1729291864740,-663.46,0.00016164,2]
[340480949,1729291864750,-614.35,0.00016164,2]
[340480950,1729291864759,-500.0,0.00016164,2]
[340480951,1729291864769,-580.4,0.00016164,2]
[340480952,1729291864779,-949.53,0.00016164,2]
[340480953,1729291864788,-701.62,0.00016164,2]
[340480954,1729291864798,-833.17,0.00016164,2]
[340480955,1729291864807,-633.06,0.00016164,2]
[340480956,1729291864818,-1000.0,0.00016164,2]
[340480957,1729291864827,-906.63,0.00016164,2]
[340480958,1729291864837,-673.81,0.00016164,2]
[340480959,1729291864847,-748.02,0.00016164,2]
[340480960,1729291864857,-627.0,0.00016164,2]
[340480961,1729291864867,-518.61,0.00016164,2]
[340480962,1729291864877,-940.92,0.00016164,2]
[340480963,1729291864887,-500.0,0.00016164,2]
[340480964,1729291864897,-454.68026405,0.00016164,2]
[340480965,1729291864910,-1590.53,0.00016164,2]
[340480966,1729291864920,-545.62,0.00016164,2]
[340480967,1729291864929,-655.37,0.00016164,2]
[340480968,1729291864939,-1005.93,0.00016164,2]
[340480969,1729291864949,-500.0,0.00016164,2]
[340480970,1729291864959,-500.0,0.00016164,2]
[340480971,1729291864969,-500.0,0.00016164,2]
[340480972,1729291864978,-560.93,0.00016164,2]
[340480973,1729291864988,-1345.81,0.00016164,2]
[340480974,1729291864997,-500.0,0.00016164,2]
[340480975,1729291865007,-808.47,0.00016164,2]
[340480976,1729291865017,-500.0,0.00016164,2]
[340480977,1729291865026,-500.0,0.00016164,2]
[340480978,1729291865035,-958.47,0.00016164,2]
[340480979,1729291865045,-500.0,0.00016164,2]
[340480980,1729291865055,-500.0,0.00016164,2]
[340480981,1729291865064,-725.08,0.00016164,2]
[340480982,1729291865074,-606.85,0.00016164,2]
[340480983,1729291865083,-995.34,0.00016164,2]
[340480984,1729291865094,-500.0,0.00016164,2]
[340480985,1729291865104,-1927.12,0.00016164,2]
[340480986,1729291865114,-500.0,0.00016164,2]
[340480987,1729291865123,-684.7,0.00016164,2]
[340480988,1729291865133,-633.19,0.00016164,2]
[340480989,1729291865143,-659.75,0.00016164,2]
[340480990,1729291865153,-607.03,0.00016164,2]
[340480991,1729291865163,-500.0,0.00016164,2]
[340480992,1729291865173,-500.0,0.00016164,2]
[340480993,1729291865182,-582.52,0.00016164,2]
[340480994,1729291865192,-500.0,0.00016164,2]
[340480995,1729291865202,-500.0,0.00016164,2]
[340480996,1729291865212,-500.0,0.00016164,2]
[340480997,1729291865221,-981.61,0.00016164,2]
[340480998,1729291865232,-500.0,0.00016164,2]
[340480999,1729291865242,-1829.57,0.00016164,2]
[340481000,1729291865251,-1010.37,0.00016164,2]
[340481001,1729291865260,-794.19,0.00016164,2]
[340481002,1729291865270,-962.66,0.00016164,2]
[340481003,1729291865279,-760.7,0.00016164,2]
[340481004,1729291865289,-2750.42,0.00016164,2]
[340481005,1729291865298,-744.46,0.00016164,2]
[340481006,1729291865308,-500.0,0.00016164,2]
[340481007,1729291865318,-500.0,0.00016164,2]
[340481008,1729291865327,-670.38,0.00016164,2]
[340481009,1729291865337,-500.0,0.00016164,2]
[340481010,1729291865346,-874.82,0.00016164,2]
[340481011,1729291865356,-500.0,0.00016164,2]
[340481012,1729291865365,-500.0,0.00016164,2]
[340481013,1729291865375,-500.0,0.00016164,2]
[340481014,1729291865385,-500.0,0.00016164,2]
[340481015,1729291865394,-956.55,0.00016164,2]
[340481016,1729291865404,-639.04,0.00016164,2]
[340481017,1729291865414,-500.0,0.00016164,2]
[340481018,1729291865423,-831.11,0.00016164,2]
[340481019,1729291865433,-159.67101487,0.00016164,2]
[340481020,1729291865443,-506.71,0.00016164,2]
[340481021,1729291865453,-1189.28,0.00016164,2]
[340481022,1729291865462,-544.67,0.00016164,2]
[340481023,1729291865471,-572.11,0.00016164,2]
[340481024,1729291865481,-861.55,0.00016164,2]
[340481025,1729291865490,-671.0,0.00016164,2]
[340481026,1729291865500,-500.0,0.00016164,2]
[340481027,1729291865509,-500.0,0.00016164,2]
[340481028,1729291865519,-264.73369802,0.00016164,2]
[340481029,1729291865528,-500.0,0.00016164,2]
[340481030,1729291865539,-1034.67,0.00016164,2]
[340481031,1729291865548,-1730.12,0.00016164,2]
[340481032,1729291865558,-500.0,0.00016164,2]
[340481033,1729291865567,-326.7974115,0.00016164,2]
[340481034,1729291865577,-500.0,0.00016164,2]
[340481035,1729291865586,-1845.83,0.00016164,2]
[340481036,1729291865644,-1306.8,0.00016164,2]
[340481037,1729291865654,-680.84,0.00016164,2]
[340481038,1729291865664,-667.45,0.00016164,2]
[340481039,1729291865673,-856.47,0.00016164,2]
[340481040,1729291865684,-500.0,0.00016164,2]
[340481041,1729291865694,-853.95,0.00016164,2]
[340481042,1729291865703,-1778.08,0.00016164,2]
[340481043,1729291865713,-616.44,0.00016164,2]
[340481044,1729291865723,-2120.38,0.00016164,2]
[340481045,1729291865733,-500.0,0.00016164,2]
[340481046,1729291865742,-505.13,0.00016164,2]
[340481047,1729291865752,-638.22,0.00016164,2]
[340481048,1729291865762,-500.0,0.00016164,2]